fUSD/lending_fUSD_20240403
["ID","MTS","AMOUNT","RATE_DAILY","PERIOD"]
[321390316,1712113847475,-185.011631,0.00050661,120]
[321390317,1712113847485,-151.0,0.00050661,7]
[321390318,1712113847495,-151.0,0.00050661,7]
[321390319,1712113847504,-3200.0,0.00050684,90]
[321390320,1712113847513,-5823.05383184,0.0005074,2]
[321390321,1712113847522,-13399.35207283,0.000508,120]
[321390322,1712113847532,-150.0,0.000508,28]
[321390323,1712113847541,-231.07058603,0.00050822,120]
[321390324,1712113847550,-152.0,0.00050886,7]
[321390325,1712113847560,-20605.24794669,0.000509,120]
[321390326,1712113847569,-355.84061526,0.000509,120]
[321390327,1712113847578,-355.84061511,0.000509,120]
[321390328,1712113847588,-355.84061511,0.000509,120]
[321390329,1712113847597,-355.84061511,0.000509,120]
[321390330,1712113847606,-355.84061511,0.000509,120]
[321390331,1712113847615,-355.84061511,0.000509,120]
[321390332,1712113847625,-355.84061511,0.000509,120]
[321390333,1712113847635,-355.84061511,0.000509,120]
[321390334,1712113847644,-355.84061511,0.000509,120]
[321390335,1712113847654,-355.84061511,0.000509,120]
[321390336,1712113847663,-355.84061511,0.000509,120]
[321390337,1712113847673,-355.84061511,0.000509,120]
[321390338,1712113847683,-355.84061511,0.000509,120]
[321390339,1712113847692,-355.84061511,0.000509,120]
[321390340,1712113847702,-355.84061511,0.000509,120]
[321390341,1712113847711,-355.84061511,0.000509,120]
[321390342,1712113847721,-355.84061511,0.000509,120]
[321390343,1712113847785,-355.84061511,0.000509,120]
[321390344,1712113847794,-355.84061511,0.000509,120]
[321390345,1712113847804,-355.84061511,0.000509,120]
[321390346,1712113847814,-307.66,0.00050925,2]
[321390347,1712113847824,-1300.0,0.00050958,90]
[321390348,1712113847833,-5456.79840225,0.00050997,2]
[321390349,1712113847844,-559.98667228,0.00051,4]
[321390350,1712113847858,-46872.14717675,0.00051,2]
[321390351,1712113847868,-2907.3305251,0.00051,14]
[321390352,1712113847878,-542029.74188801,0.00051,120]
[321390353,1712113847887,-3515.44032012,0.00051,30]
[321390354,1712113847898,-503.02441575,0.00051,120]
[321390355,1712113847909,-2024.54,0.00051,120]
[321390356,1712113847921,-1000.0,0.00051,2]
[321390357,1712113847932,-1000.0,0.00051,20]
[321390358,1712113847941,-187.370104,0.00051,7]
[321390359,1712113847951,-187.370104,0.00051,7]
[321390360,1712113847961,-1016.0,0.00051,2]
[321390361,1712113847972,-151.0,0.00051,120]
[321390362,1712113847981,-151.0,0.00051,7]
[321390363,1712113847991,-253.408358,0.00051,7]
[321390364,1712113848000,-1200.0,0.00051,3]
[321390365,1712113848010,-150.0,0.00051,10]
[321390366,1712113848019,-231.07058603,0.00051014,120]
[321390367,1712113848030,-154.35503134,0.00051019,60]
[321390368,1712113848040,-324.02680549,0.00051035,60]
[321390369,1712113848050,-324.02680549,0.00051061,60]
[321390370,1712113848059,-150.0,0.00051076,30]
[321390371,1712113848068,-150.0,0.00051076,30]
[321390372,1712113848078,-150.0,0.00051076,30]
[321390373,1712113848087,-150.0,0.00051076,30]
[321390374,1712113848097,-904.55,0.00051076,30]
[321390375,1712113848106,-150.0,0.00051076,30]
[321390376,1712113848115,-416.91,0.00051076,30]
[321390377,1712113848125,-150.0,0.00051076,30]
[321390378,1712113848134,-519.19,0.00051076,30]
[321390379,1712113848144,-150.0,0.00051076,30]
[321390380,1712113848153,-1809.1,0.00051076,30]
[321390381,1712113848162,-150.0,0.00051076,30]
[321390382,1712113848172,-416.91,0.00051076,30]
[321390383,1712113848181,-161.88,0.00051076,30]
[321390384,1712113848191,-307.06,0.00051076,30]
[321390385,1712113848201,-416.91,0.00051076,30]
[321390386,1712113848210,-519.19,0.00051076,30]
[321390387,1712113848219,-150.0,0.00051076,30]
[321390388,1712113848229,-161.88,0.00051076,30]
[321390389,1712113848238,-348.46,0.00051076,30]
[321390390,1712113848249,-150.0,0.00051076,30]
[321390391,1712113848259,-150.0,0.00051076,30]
[321390392,1712113848268,-161.88,0.00051076,30]
[321390393,1712113848278,-519.19,0.00051076,30]
[321390394,1712113848287,-150.0,0.00051076,30]
[321390395,1712113848297,-416.91,0.00051076,30]
[321390396,1712113848306,-150.0,0.00051076,30]
[321390397,1712113848315,-161.88,0.00051076,30]
[321390398,1712113848324,-519.19,0.00051076,30]
[321390399,1712113848334,-348.46,0.00051076,30]
[321390400,1712113848344,-150.0,0.00051076,30]
[321390401,1712113848353,-416.91,0.00051076,30]
[321390402,1712113848364,-348.46,0.00051076,30]
[321390403,1712113848373,-150.0,0.00051076,30]
[321390404,1712113848382,-519.19,0.00051076,30]
[321390405,1712113848393,-416.91,0.00051076,30]
[321390406,1712113848402,-348.46,0.00051076,30]
[321390407,1712113848411,-348.46,0.00051076,30]
[321390408,1712113848421,-150.0,0.00051076,30]
[321390409,1712113848431,-416.91,0.00051076,30]
[321390410,1712113848440,-348.46,0.00051076,30]
[321390411,1712113848449,-155.63,0.00051076,30]
[321390412,1712113848459,-727.09,0.00051076,30]
[321390413,1712113848468,-416.91,0.00051076,30]
[321390414,1712113848477,-416.91,0.00051076,30]
[321390415,1712113848486,-154.27788653,0.00051077,60]
[321390416,1712113848496,-912.42,0.000511,7]
[321390417,1712113848505,-155.40310942,0.00051123,60]
[321390418,1712113848514,-181.71250369,0.00051125,60]
[321390419,1712113848523,-151.0,0.00051186,2]
[321390420,1712113848533,-250.49088,0.00051186,2]
[321390421,1712113848542,-1000.0,0.000512,7]
[321390422,1712113848552,-154.35503134,0.000512,60]
[321390423,1712113848561,-3200.0,0.00051232,90]
[321390424,1712113848570,-500.0,0.00051232,90]
[321390425,1712113848580,-500.0,0.00051232,90]
[321390426,1712113848589,-500.0,0.00051232,90]
[321390427,1712113848599,-231.07058603,0.00051233,120]
[321390428,1712113848609,-176.75520919,0.0005124,60]
[321390429,1712113848619,-176.75520919,0.0005127,60]
[321390430,1712113848628,-151.0,0.00051288,120]
[321390431,1712113848637,-176.75520919,0.00051335,60]
[321390432,1712113848647,-153.53105328,0.00051348,60]
[321390433,1712113848656,-170.97610606,0.00051364,60]
[321390434,1712113848665,-1006.94,0.00051365,2]
[321390435,1712113848675,-441.36812552,0.00051366,60]
[321390436,1712113848684,-170.97610606,0.00051383,60]
[321390437,1712113848694,-441.36812552,0.0005142,60]
[321390438,1712113848703,-167.20676621,0.00051442,60]
[321390439,1712113848712,-231.07058603,0.00051452,120]
[321390440,1712113848722,-324.02680549,0.00051456,60]
[321390441,1712113848731,-154.12212371,0.00051472,60]
[321390442,1712113848742,-170.97610606,0.0005149,60]
[321390443,1712113848751,-324.02680549,0.00051499,60]
[321390444,1712113848760,-2000.0,0.000515,120]
[321390445,1712113848769,-410.13,0.000515,7]
[321390446,1712113848778,-150.0,0.000515,10]
[321390447,1712113848788,-1300.0,0.00051506,90]
[321390448,1712113848797,-151.29625457,0.00051511,60]
[321390449,1712113848806,-170.97610606,0.00051541,60]
[321390450,1712113848816,-154.12212371,0.00051579,60]
[321390451,1712113848825,-155.80724411,0.00051623,60]
[321390452,1712113848834,-153.53105328,0.00051624,60]
[321390453,1712113848844,-441.36812552,0.00051632,60]
[321390454,1712113848854,-231.07058603,0.00051644,120]
[321390455,1712113848864,-170.97610606,0.00051646,60]
[321390456,1712113848873,-176.26740746,0.00051657,60]
[321390457,1712113848882,-170.97610606,0.00051661,60]
[321390458,1712113848891,-441.36812552,0.00051681,60]
[321390459,1712113848901,-158.08838208,0.00051691,60]
[321390460,1712113848910,-154.35503134,0.00051692,60]
[321390461,1712113848920,-200.0,0.00051693,120]
[321390462,1712113848929,-195338.36653273,0.000517,2]
[321390463,1712113848939,-441.36812552,0.00051713,60]
[321390464,1712113848948,-916.63,0.00051726,120]
[321390465,1712113848957,-3200.0,0.0005178,90]
[321390466,1712113848966,-500.0,0.0005178,90]
[321390467,1712113848975,-500.0,0.0005178,90]
[321390468,1712113848984,-500.0,0.0005178,90]
[321390469,1712113848994,-5456.79840225,0.00051797,2]
[321390470,1712113849003,-183177.52718101,0.000518,30]
[321390471,1712113849013,-150.0,0.000518,30]
[321390472,1712113849023,-176.75520919,0.00051811,60]
[321390473,1712113849032,-168.21803369,0.00051819,60]
[321390474,1712113849042,-441.36812552,0.00051829,60]
[321390475,1712113849051,-153.53105328,0.00051857,60]
[321390476,1712113849061,-720.98752795,0.00051863,60]
[321390477,1712113849070,-231.07058603,0.00051863,120]
[321390478,1712113849080,-1777.2,0.000519,7]
[321390479,1712113849090,-121122.128,0.0005194,120]
[321390480,1712113849100,-121122.129,0.0005194,120]
[321390481,1712113849110,-121122.129,0.0005194,120]
[321390482,1712113849121,-121122.129,0.0005194,120]
[321390483,1712113849131,-121122.129,0.0005194,120]
[321390484,1712113849141,-221.96392134,0.0005194,120]
[321390485,1712113849151,-1894.863,0.0005194,120]
[321390486,1712113849161,-1894.864,0.0005194,120]
[321390487,1712113849171,-1894.863,0.0005194,120]
[321390488,1712113849181,-1894.863,0.0005194,120]
[321390489,1712113849190,-1894.864,0.0005194,120]
[321390490,1712113849200,-154.28158035,0.00051952,60]
[321390491,1712113849209,-720.98752795,0.00051961,60]
[321390492,1712113849219,-324.02680549,0.00051965,60]
[321390493,1712113849229,-170.97610606,0.00051986,60]
[321390494,1712113849238,-324.02680549,0.00051996,60]
[321390495,1712113849248,-5456.79840225,0.00051997,2]
[321390496,1712113849257,-98051.63554872,0.00051999,2]
[321390497,1712113849267,-6336.23950881,0.00052,20]
[321390498,1712113849276,-220000.0,0.00052,7]
[321390499,1712113849286,-1173.11,0.00052,120]
[321390500,1712113849295,-5000.0,0.00052,120]
[321390501,1712113849305,-12264.00473546,0.00052,120]
[321390502,1712113849315,-150.0,0.00052,2]
[321390503,1712113849324,-12018.54073987,0.00052,7]
[321390504,1712113849333,-56411.90717512,0.00052,2]
[321390505,1712113849343,-4944.26832841,0.00052,120]
[321390506,1712113849351,-5510.02581428,0.00052,2]
[321390507,1712113849360,-2000.0,0.00052,120]
[321390508,1712113849370,-150.0,0.00052,2]
[321390509,1712113849380,-1075.0,0.00052,120]
[321390510,1712113849389,-1000.0,0.00052,2]
[321390511,1712113849399,-112541.17175222,0.00052,120]
[321390512,1712113849408,-150.0,0.00052,11]
[321390513,1712113849418,-155.64422399,0.00052013,60]
[321390514,1712113849427,-176.19879889,0.00052035,60]
[321390515,1712113849436,-302.0,0.00052046,4]
[321390516,1712113849445,-153.53105328,0.00052048,60]
[321390517,1712113849454,-307.66,0.0005205,2]
[321390518,1712113849464,-1300.0,0.00052054,90]
[321390519,1712113849474,-231.07058603,0.00052055,120]
[321390520,1712113849484,-294.52,0.00052055,2]
[321390521,1712113849493,-154.12212371,0.00052056,60]
[321390522,1712113849503,-229.70008198,0.00052094,60]
[321390523,1712113849512,-324.02680549,0.00052098,60]
[321390524,1712113849522,-5000.0,0.000521,120]
[321390525,1712113849531,-3000.0,0.000521,2]
[321390526,1712113849541,-441.36812552,0.00052108,60]
[321390527,1712113849550,-153.53105328,0.00052114,60]
[321390528,1712113849559,-154.12212371,0.0005212,60]
[321390529,1712113849568,-170.97610606,0.00052134,60]
[321390530,1712113849578,-154.12212371,0.00052152,60]
[321390531,1712113849587,-153.53105328,0.00052153,60]
[321390532,1712113849597,-324.31,0.000522,120]
[321390533,1712113849607,-153.53105328,0.00052219,60]
[321390534,1712113849617,-154.12212371,0.00052229,60]
[321390535,1712113849627,-153.53105328,0.00052231,60]
[321390536,1712113849637,-152.0,0.00052267,5]
[321390537,1712113849646,-152.0,0.00052267,8]
[321390538,1712113849655,-441.36812552,0.00052268,60]
[321390539,1712113849665,-231.07058603,0.00052274,120]
[321390540,1712113849675,-176.75520919,0.00052295,60]
[321390541,1712113849685,-155.80724411,0.00052315,60]
[321390542,1712113849694,-3200.0,0.00052328,90]
[321390543,1712113849703,-500.0,0.00052328,90]
[321390544,1712113849712,-500.0,0.00052328,90]
[321390545,1712113849722,-500.0,0.00052328,90]
[321390546,1712113849731,-229.70008198,0.00052341,60]
[321390547,1712113849741,-154.12212371,0.00052342,60]
[321390548,1712113849751,-324.02680549,0.00052361,60]
[321390549,1712113849760,-166.99346795,0.00052373,60]
[321390550,1712113849770,-151.0,0.00052384,120]
[321390551,1712113849779,-229.70008198,0.00052409,60]
[321390552,1712113849789,-324.02680549,0.00052415,60]
[321390553,1712113849798,-441.36812552,0.00052417,60]
[321390554,1712113849807,-153.64559786,0.00052433,60]
[321390555,1712113849817,-150.0,0.000525,11]
[321390556,1712113849826,-1000.0,0.000525,7]
[321390557,1712113849836,-176.19879889,0.00052508,60]
[321390558,1712113849846,-324.02680549,0.00052508,60]
[321390559,1712113849858,-170.97610606,0.00052533,60]
[321390560,1712113849868,-166.52535599,0.00052541,60]
[321390561,1712113849878,-176.75520919,0.00052553,60]
[321390562,1712113849888,-151.29625457,0.00052555,60]
[321390563,1712113849898,-155.40310942,0.00052567,60]
[321390564,1712113849908,-176.19879889,0.00052573,60]
[321390565,1712113849918,-1300.0,0.00052602,90]
[321390566,1712113849929,-324.02680549,0.00052633,60]
[321390567,1712113849940,-153.53105328,0.00052651,60]
[321390568,1712113849950,-912.42,0.000527,14]
[321390569,1712113849960,-151.29625457,0.00052724,60]
[321390570,1712113849969,-154.12212371,0.0005273,60]
[321390571,1712113849979,-176.75520919,0.00052772,60]
[321390572,1712113849988,-154.12212371,0.00052773,60]
[321390573,1712113849999,-441.36812552,0.00052775,60]
[321390574,1712113850008,-176.19879889,0.00052799,60]
[321390575,1712113850018,-216.62,0.000528,31]
[321390576,1712113850027,-890.8,0.00052812,2]
[321390577,1712113850037,-176.19879889,0.00052833,60]
[321390578,1712113850047,-720.98752795,0.00052839,60]
[321390579,1712113850057,-229.70008198,0.00052841,60]
[321390580,1712113850067,-324.02680549,0.00052851,60]
[321390581,1712113850077,-3200.0,0.00052876,90]
[321390582,1712113850087,-507.80598945,0.00052876,90]
[321390583,1712113850096,-504.11452582,0.00052876,90]
[321390584,1712113850106,-500.0,0.00052876,90]
[321390585,1712113850115,-164.57501874,0.00052877,60]
[321390586,1712113850125,-324.02680549,0.00052879,60]
[321390587,1712113850135,-304.95946752,0.000529,30]
[321390588,1712113850145,-604.0,0.00052921,7]
[321390589,1712113850154,-1006.94,0.0005293,2]
[321390590,1712113850164,-324.02680549,0.00052933,60]
[321390591,1712113850174,-176.75520919,0.00052933,60]
[321390592,1712113850183,-176.75520919,0.00052985,60]
[321390593,1712113850194,-150.0,0.00052989,14]
[321390594,1712113850204,-150.0,0.00052989,14]
[321390595,1712113850214,-150.0,0.00052989,14]
[321390596,1712113850224,-150.0,0.00052989,14]
[321390597,1712113850234,-150.0,0.00052989,14]
[321390598,1712113850244,-150.0,0.00052989,14]
[321390599,1712113850254,-150.0,0.00052989,14]
[321390600,1712113850265,-150.0,0.00052989,14]
[321390601,1712113850275,-150.0,0.00052989,14]
[321390602,1712113850286,-150.0,0.00052989,14]
[321390603,1712113850296,-150.0,0.00052989,14]
[321390604,1712113850306,-150.0,0.00052989,14]
[321390605,1712113850316,-150.0,0.00052989,14]
[321390606,1712113850326,-286.35690235,0.00052989,14]
[321390607,1712113850336,-5024.82841,0.00052992,30]
[321390608,1712113850346,-206.0,0.00052995,120]
[321390609,1712113850356,-214.0,0.00052995,2]
[321390610,1712113850366,-22302.034,0.00052995,120]
[321390611,1712113850375,-1196.0,0.00052995,2]
[321390612,1712113850384,-150.0,0.00052995,2]
[321390613,1712113850394,-335191.28725967,0.00053,120]
[321390614,1712113850403,-42658.11718168,0.00053,30]
[321390615,1712113850413,-2000.0,0.00053,120]
[321390616,1712113850423,-410.13,0.00053,30]
[321390617,1712113850432,-1500.0,0.00053,120]
[321390618,1712113850442,-966.0,0.00053,2]
[321390619,1712113850452,-1018.0,0.00053,120]
[321390620,1712113850461,-1250.0,0.00053,3]
[321390621,1712113850471,-927.0,0.00053,100]
[321390622,1712113850481,-392.200373,0.00053,31]
[321390623,1712113850490,-392.200373,0.00053,31]
[321390624,1712113850500,-150.0,0.00053,11]
[321390625,1712113850510,-151.0,0.00053,120]
[321390626,1712113850520,-151.0,0.00053,14]
[321390627,1712113850529,-185.011631,0.00053,120]
[321390628,1712113850539,-185.011631,0.00053,120]
[321390629,1712113850549,-151.0,0.00053,7]
[321390630,1712113850558,-151.0,0.00053,7]
[321390631,1712113850568,-176.19879889,0.00053005,60]
[321390632,1712113850578,-151.29625457,0.00053021,60]
[321390633,1712113850587,-155.64422399,0.0005304,60]
[321390634,1712113850597,-8507.35906437,0.00053053,40]
[321390635,1712113850606,-5000.0,0.00053053,42]
[321390636,1712113850615,-5000.0,0.00053053,38]
[321390637,1712113850625,-5000.0,0.00053053,40]
[321390638,1712113850634,-5000.0,0.00053053,38]
[321390639,1712113850644,-151.0,0.00053068,120]
[321390640,1712113850654,-153.53105328,0.00053071,60]
[321390641,1712113850664,-176.19879889,0.00053072,60]
[321390642,1712113850673,-546.949658,0.00053115,30]
[321390643,1712113850685,-166.881784,0.00053115,30]
[321390644,1712113850695,-1508.365286,0.00053115,30]
[321390645,1712113850705,-178.810342,0.00053115,30]
[321390646,1712113850715,-173.130722,0.00053115,30]
[321390647,1712113850725,-191.585948,0.00053115,30]
[321390648,1712113850736,-720.98752795,0.00053121,60]
[321390649,1712113850747,-176.26740746,0.00053136,60]
[321390650,1712113850757,-1300.0,0.0005315,90]
[321390651,1712113850767,-307.66,0.00053175,2]
[321390652,1712113850776,-155.64422399,0.00053187,60]
[321390653,1712113850786,-2225.3,0.00053205,117]
[321390654,1712113850797,-2085.0,0.00053216,7]
[321390655,1712113850806,-229.70008198,0.0005324,60]
[321390656,1712113850816,-154.35503134,0.00053252,60]
[321390657,1712113850825,-5859.37448454,0.000533,7]
[321390658,1712113850835,-177.38610085,0.00053312,60]
[321390659,1712113850845,-176.19879889,0.00053317,60]
[321390660,1712113850858,-720.98752795,0.00053326,60]
[321390661,1712113850868,-324.02680549,0.00053339,60]
[321390662,1712113850877,-176.19879889,0.00053368,60]
[321390663,1712113850888,-3200.0,0.00053424,90]
[321390664,1712113850898,-500.0,0.00053424,90]
[321390665,1712113850907,-170.97610606,0.00053444,60]
[321390666,1712113850920,-3519.0,0.00053457,10]
[321390667,1712113850930,-151.0,0.00053479,120]
[321390668,1712113850940,-4113.3697648,0.000535,40]
[321390669,1712113850950,-1777.2,0.000535,7]
[321390670,1712113850959,-927.0,0.000535,101]
[321390671,1712113850968,-150.0,0.000535,11]
[321390672,1712113850977,-154.25630043,0.00053528,60]
[321390673,1712113850987,-176.75520919,0.00053533,60]
[321390674,1712113850997,-720.98752795,0.00053551,60]
[321390675,1712113851006,-153.53105328,0.00053552,60]
[321390676,1712113851016,-1036.9420484,0.00053592,5]
[321390677,1712113851026,-154.12212371,0.000536,60]
[321390678,1712113851035,-155.80724411,0.00053604,60]
[321390679,1712113851045,-170.97610606,0.00053624,60]
[321390680,1712113851055,-152.0,0.00053648,9]
[321390681,1712113851064,-170.97610606,0.00053652,60]
[321390682,1712113851074,-170.97610606,0.00053657,60]
[321390683,1712113851084,-155.01816655,0.00053659,60]
[321390684,1712113851093,-784.19374449,0.00053696,4]
[321390685,1712113851103,-1300.0,0.00053698,90]
[321390686,1712113851113,-176.75520919,0.00053724,60]
[321390687,1712113851122,-153.53105328,0.00053729,60]
[321390688,1712113851132,-387.60626693,0.0005375,30]
[321390689,1712113851141,-229.70008198,0.00053755,60]
[321390690,1712113851151,-546.949658,0.00053779,30]
[321390691,1712113851162,-1508.365286,0.00053779,30]
[321390692,1712113851171,-324.02680549,0.00053779,60]
[321390693,1712113851181,-176.75520919,0.00053795,60]
[321390694,1712113851191,-21827.193609,0.00053797,2]
[321390695,1712113851200,-2481541.41984017,0.000538,2]
[321390696,1712113851916,-795.04420169,0.0004,2]
[321390697,1712113851926,-262710.95579827,0.000538,2]
[321390698,1712113852419,-456.07698498,0.0004,2]
[321390699,1712113853045,-631.59606109,0.00036154,2]
[321390700,1712113853055,-338.96721671,0.0004,2]
[321390701,1712113853065,-795.04420169,0.0004,2]
[321390702,1712113853073,-468.43758247,0.0004,2]
[321390703,1712113853089,-326.60661922,0.0004,2]
[321390704,1712113853098,-795.04420169,0.0004,2]
[321390705,1712113853107,-795.04420169,0.0004,2]
[321390706,1712113853116,-795.04420169,0.0004,2]
[321390707,1712113853125,-795.04420169,0.0004,2]
[321390708,1712113853135,-795.04420169,0.0004,2]
[321390709,1712113853144,-795.04420169,0.0004,2]
[321390710,1712113853154,-795.04420169,0.0004,2]
[321390711,1712113853163,-148.8901129,0.0004,2]
[321390712,1712113853198,-646.15408879,0.0004,2]
[321390713,1712113853208,-795.04420169,0.0004,2]
[321390714,1712113853216,-795.04420169,0.0004,2]
[321390715,1712113853226,-795.04420169,0.0004,2]
[321390716,1712113853236,-795.04420169,0.0004,2]
[321390717,1712113853246,-795.04420169,0.0004,2]
[321390718,1712113853257,-795.04420169,0.0004,2]
[321390719,1712113853266,-795.04420169,0.0004,2]
[321390720,1712113853275,-795.04420169,0.0004,2]
[321390721,1712113853285,-795.04420169,0.0004,2]
[321390722,1712113853296,-795.04420169,0.0004,2]
[321390723,1712113853307,-795.04420169,0.0004,2]
[321390724,1712113853316,-795.04420169,0.0004,2]
[321390725,1712113853324,-795.04420169,0.0004,2]
[321390726,1712113853335,-795.04420169,0.0004,2]
[321390727,1712113853346,-795.04420169,0.0004,2]
[321390728,1712113853354,-795.04420169,0.0004,2]
[321390729,1712113853364,-795.04420169,0.0004,2]
[321390730,1712113853374,-795.04420169,0.0004,2]
[321390731,1712113853383,-795.04420169,0.0004,2]
[321390732,1712113853392,-795.04420169,0.0004,2]
[321390733,1712113853401,-795.04420169,0.0004,2]
[321390734,1712113853411,-795.04420169,0.0004,2]
[321390735,1712113853420,-795.04420169,0.0004,2]
[321390736,1712113853430,-795.04420169,0.0004,2]
[321390737,1712113853440,-151.0,0.00050661,120]
[321390738,1712113853450,-285367.73370831,0.000538,2]
[321390739,1712113853459,-636.558555,0.000538,30]
[321390740,1712113853468,-187.370104,0.000538,7]
[321390741,1712113853478,-187.370104,0.000538,7]
[321390742,1712113853486,-151.0,0.000538,7]
[321390743,1712113853498,-156.568513,0.000538,7]
[321390744,1712113853507,-151.0,0.000538,120]
[321390745,1712113853516,-151.0,0.000538,14]
[321390746,1712113853525,-1000.0,0.000538,7]
[321390747,1712113853534,-185.011631,0.000538,120]
[321390748,1712113853543,-185.011631,0.000538,120]
[321390749,1712113853552,-151.0,0.000538,7]
[321390750,1712113853561,-185.000084,0.000538,7]
[321390751,1712113853570,-166.99392,0.0005381,4]
[321390752,1712113853579,-151.0,0.00053824,11]
[321390753,1712113853588,-150.0,0.00053833,7]
[321390754,1712113853598,-176.75520919,0.00053892,60]
[321390755,1712113853607,-324.02680549,0.00053903,60]
[321390756,1712113853616,-200.0,0.00053905,120]
[321390757,1712113853625,-150.0,0.00053953,7]
[321390758,1712113853634,-176.19879889,0.00053961,60]
[321390759,1712113853643,-150.0,0.00053964,7]
[321390760,1712113853652,-3200.0,0.00053972,90]
[321390761,1712113853662,-252.07745241,0.00053972,90]
[321390762,1712113853671,-595.0,0.00053973,120]
[321390763,1712113853680,-553.0,0.00053973,120]
[321390764,1712113853689,-538.0,0.00053973,120]
[321390765,1712113853698,-150.0,0.00053986,7]
[321390766,1712113853707,-696.88749781,0.00054,30]
[321390767,1712113853716,-5247.2289223,0.00054,120]
[321390768,1712113853725,-7799.99213425,0.00054,20]
[321390769,1712113854871,-273.221,0.0004,2]
[321390770,1712113855825,-521.82320169,0.0004,2]
[321390771,1712113855835,-795.04420169,0.0004,2]
[321390772,1712113855844,-724.16859665,0.0004,2]
[321390773,1712113855859,-70.87560504,0.0004,2]
[321390774,1712113855868,-795.04420169,0.0004,2]
[321390775,1712113855878,-795.04420169,0.0004,2]
[321390776,1712113855887,-795.04420169,0.0004,2]
[321390777,1712113855897,-683.99178996,0.0004,2]
[321390778,1712113855914,-500.0,0.00036153,2]
[321390779,1712113855924,-8.5,0.0004,2]
[321390780,1712114482643,150.0,0.00016712,2]
[321390781,1712114482665,21.15,0.00016712,2]
[321390783,1712114834807,4900.0,0.00042056,120]
[321390784,1712114840112,-500.0,0.00024692,2]
[321390785,1712114840134,-186.53016002,0.00024693,2]
[321390786,1712114840156,-166.75903861,0.00024791,2]
[321390787,1712114840177,-300.0,0.00024999,2]
[321390788,1712114840198,-5.34380841,0.00024999,2]
[321390789,1712114840242,-294.65619159,0.00024999,2]
[321390790,1712114840263,-90.88354414,0.00024999,2]
[321390791,1712114946091,-209.11645586,0.00024999,2]
[321390792,1712114946110,-300.0,0.00024999,2]
[321390793,1712114946132,-300.0,0.00024999,2]
[321390794,1712114946151,-178.40454926,0.00024999,2]
[321390821,1712115031964,-500.0,0.00024898,2]
[321390823,1712115031978,-160.62878008,0.00024899,2]
[321390825,1712115031988,-121.59545074,0.00024999,2]
[321390827,1712115031998,-300.0,0.00024999,2]
[321390829,1712115032008,-300.0,0.00024999,2]
[321390831,1712115032018,-300.0,0.00024999,2]
[321390833,1712115032028,-300.0,0.00024999,2]
[321390835,1712115032038,-300.0,0.00024999,2]
[321390837,1712115032048,-300.0,0.00024999,2]
[321390839,1712115032058,-300.0,0.00024999,2]
[321390841,1712115032067,-300.0,0.00024999,2]
[321390843,1712115032077,-300.0,0.00024999,2]
[321390845,1712115032087,-304.15966376,0.00024999,2]
[321390847,1712115032098,-1721.35,0.00025933,2]
[321390849,1712115032107,-263.73,0.00025933,2]
[321390851,1712115032117,-500.0,0.00025933,2]
[321390853,1712115032127,-1000.0,0.00025933,2]
[321390855,1712115032137,-503.02879879,0.000262,2]
[321390857,1712115032146,-160.62877998,0.00027508,2]
[321390859,1712115032156,-158.02,0.00027694,2]
[321390861,1712115032166,-209.75536868,0.000288,2]
[321390863,1712115032176,-1000.0,0.00029174,2]